fUST/lending_fUST_20250223
["ID","MTS","AMOUNT","RATE_DAILY","PERIOD"]
[354166079,1740317435907,-500.0,0.00014109,2]
[354166080,1740317435917,-686.6,0.00014109,2]
[354166081,1740317435926,-500.0,0.00014116,2]
[354166082,1740317435935,-500.0,0.00014116,2]
[354166083,1740317435944,-4653.15138843,0.00014116,2]
[354166084,1740317435960,-500.0,0.00014116,2]
[354166099,1740317438669,-500.0,0.00013698,2]
[354166101,1740317438679,-500.0,0.0001378,2]
[354166103,1740317438688,-500.0,0.00013863,2]
[354166104,1740317438698,-500.0,0.00013945,2]
[354166106,1740317438707,-500.0,0.00014027,2]
[354166108,1740317438716,-500.0,0.00014109,2]
[354166109,1740317438726,-8126.3945008,0.00014116,2]
[354166110,1740317438735,-1954.06044113,0.00014117,2]
[354166111,1740317438747,-4097.80733666,0.00014117,2]
[354166112,1740317438787,-500.0,0.00014117,2]
[354166113,1740317438798,-971.8838844,0.00014117,2]
[354166114,1740317438811,-923.43172791,0.00014117,2]
[354166115,1740317438822,-1500.0,0.00014117,2]
[354166144,1740317443684,-355.34213273,0.00013698,2]
[354166145,1740317443696,-293.98786727,0.00013698,2]
[354166146,1740317443705,-649.33,0.0001378,2]
[354166147,1740317443714,-649.33,0.00013863,2]
[354166148,1740317443724,-649.33,0.00013945,2]
[354166149,1740317443733,-649.33,0.00014027,2]
[354166150,1740317443742,-649.33,0.00014109,2]
[354166151,1740317443751,-2406.40169873,0.00014117,2]
[354166153,1740317443763,-571.31165551,0.00014117,2]
[354166154,1740317443772,-151.0,0.00014117,2]
[354166155,1740317443781,-151.0,0.00014117,2]
[354166156,1740317443791,-151.0,0.00014117,2]
[354166157,1740317443800,-151.0,0.00014117,2]
[354166158,1740317443809,-151.0,0.00014117,2]
[354166159,1740317443818,-151.0,0.00014117,2]
[354166160,1740317443827,-151.0,0.00014134,2]
[354166161,1740317443837,-500.0,0.00014164,2]
[354166162,1740317443846,-500.0,0.00014191,2]
[354166163,1740317443856,-439.77,0.00014191,2]
[354166164,1740317443866,-500.0,0.00014191,2]
[354166165,1740317443875,-527.93,0.00014191,2]
[354166166,1740317443884,-500.0,0.00014191,2]
[354166167,1740317443893,-500.0,0.00014191,2]
[354166168,1740317443902,-2919.65,0.00014191,2]
[354166169,1740317443911,-846.6,0.00014191,2]
[354166170,1740317443920,-4217.09,0.00014191,2]
[354166171,1740317443929,-837.2,0.00014191,2]
[354166172,1740317443939,-684.11,0.00014191,2]
[354166173,1740317443948,-500.0,0.00014191,2]
[354166174,1740317443957,-686.6,0.00014191,2]
[354166175,1740317443968,-500.0,0.00014191,2]
[354166176,1740317443980,-649.33,0.00014191,2]
[354166177,1740317443989,-163.4030903,0.00014209,2]
[354166178,1740317443998,-159.877231,0.0001421,5]
[354166179,1740317444007,-150.0,0.00014248,4]
[354166180,1740317444016,-228.860061,0.00014273,2]
[354166181,1740317444025,-228.860061,0.00014273,2]
[354166182,1740317444035,-606.066338,0.00014273,2]
[354166183,1740317444044,-606.066338,0.00014273,2]
[354166184,1740317444054,-151.0,0.00014273,2]
[354166185,1740317444063,-243.121416,0.00014273,2]
[354166186,1740317444072,-151.140587,0.00014273,2]
[354166187,1740317444081,-500.0,0.00014273,2]
[354166188,1740317444091,-151.0,0.00014273,2]
[354166189,1740317444100,-331.59392111,0.00014273,2]
[354166202,1740317446703,-5000.0,0.00013561,2]
[354166203,1740317446713,-290.66882089,0.00014273,2]
[354166204,1740317446722,-151.0,0.00014273,2]
[354166205,1740317446731,-622.262742,0.00014273,2]
[354166206,1740317446740,-500.0,0.00014273,2]
[354166207,1740317446750,-277.147113,0.00014273,2]
[354166208,1740317446760,-527.93,0.00014273,2]
[354166210,1740317446769,-277.147113,0.00014273,2]
[354166212,1740317446778,-500.0,0.00014273,2]
[354166213,1740317446787,-500.0,0.00014273,2]
[354166214,1740317446797,-2919.65,0.00014273,2]
[354166215,1740317446806,-846.6,0.00014273,2]
[354166216,1740317446816,-3939.44565218,0.00014273,2]
[354166217,1740317678175,271.026009,9.041e-05,2]
[354166218,1740317746496,1000.0,0.00019,120]
[354166220,1740318208082,5000.0,9.913e-05,2]
[354166263,1740318631978,-1204.15000005,0.00010848,2]
[354166266,1740318631989,-3795.84999995,0.00010848,2]
[354166268,1740318631998,-300.0,0.00010958,2]
[354166270,1740318632008,-355.88,0.00010959,2]
[354166272,1740318632017,-434.34,0.00010959,2]
[354166274,1740318632026,-361.95,0.00010959,2]
[354166276,1740318632035,-301.62,0.00010959,2]
[354166278,1740318632044,-251.35,0.00010959,2]
[354166280,1740318632053,-209.46,0.00010959,2]
[354166282,1740318632062,-174.55,0.00010959,2]
[354166284,1740318632071,-872.79,0.00010959,2]
[354166286,1740318632080,-15845.1985743,0.00011807,2]
[354166288,1740318632090,-212.9715088,0.00011988,2]
[354166290,1740318632099,-420.0,0.00012042,2]
[354166292,1740318632108,-165.494269,0.00012177,2]
[354166294,1740318632117,-250.0,0.0001289,2]
[354166296,1740318632128,-250.0,0.00013197,2]
[354166298,1740318632137,-587.0,0.00013233,2]
[354166300,1740318632147,-152.0,0.00013591,2]
[354166302,1740318632156,-168.51140616,0.00013598,2]
[354166304,1740318632165,-402.10980928,0.00013673,2]
[354166306,1740318632174,-500.0,0.00013673,2]
[354166308,1740318632183,-150.21555973,0.00013673,2]
[354166310,1740318632192,-500.0,0.00013673,2]
[354166312,1740318632202,-151.0,0.0001369,2]
[354166314,1740318632210,-156.7419226,0.00013698,2]
[354166316,1740318632220,-500.65551474,0.00013698,2]
[354166318,1740318632229,-501.67401169,0.00013698,2]
[354166320,1740318632238,-503.01112703,0.00013698,2]
[354166322,1740318632248,-566.55326654,0.00013698,2]
[354166324,1740318632257,-501.41611769,0.00013698,2]
[354166326,1740318632267,-503.12002057,0.00013698,2]
[354166328,1740318632276,-500.0,0.00013698,2]
[354166330,1740318632285,-500.0,0.00013698,2]
[354166332,1740318632295,-201.7161489,0.00013698,2]
[354166334,1740318632304,-503.41060773,0.00013698,2]
[354166336,1740318632314,-501.38414607,0.00013698,2]
[354166338,1740318632323,-500.0,0.00013698,2]
[354166340,1740318632332,-628.74285287,0.00013698,2]
[354166341,1740318632342,-500.0,0.00013698,2]
[354166342,1740318632351,-365.05617713,0.00013698,2]
[354166343,1740318632359,-371.39732752,0.00013698,2]
[354166344,1740318632368,-500.0,0.00013698,2]
[354166345,1740318632377,-502.16689917,0.00013698,2]
[354166346,1740318632387,-500.0,0.00013698,2]
[354166347,1740318632396,-500.0,0.00013698,2]
[354166348,1740318632405,-500.0,0.00013698,2]
[354166349,1740318632414,-500.0,0.00013698,2]
[354166350,1740318632423,-500.0,0.00013698,2]
[354166351,1740318632431,-511.47600272,0.00013698,2]
[354166352,1740318632440,-500.70484194,0.00013698,2]
[354166353,1740318632449,-502.68975604,0.00013698,2]
[354166354,1740318632458,-500.0,0.00013698,2]
[354166355,1740318632467,-408.43160238,0.00013698,2]
[354166356,1740318632479,-500.0,0.00013698,2]
[354166357,1740318632488,-465.25118443,0.00013698,2]
[354166358,1740318632497,-500.0,0.00013698,2]
[354166359,1740318632506,-465.75367013,0.00013698,2]
[354166361,1740318632516,-500.0,0.00013698,2]
[354166363,1740318632525,-504.26150352,0.00013698,2]
[354166365,1740318632535,-500.0,0.00013698,2]
[354166367,1740318632544,-505.41298056,0.00013698,2]
[354166369,1740318632553,-501.23783468,0.00013698,2]
[354166370,1740318632562,-500.0,0.00013698,2]
[354166372,1740318632572,-501.64854121,0.00013698,2]
[354166374,1740318632581,-500.0,0.00013698,2]
[354166376,1740318632591,-366.68583364,0.00013698,2]
[354166379,1740318632600,-504.63034715,0.00013698,2]
[354166380,1740318632610,-503.26698495,0.00013698,2]
[354166382,1740318632619,-500.0,0.00013698,2]
[354166384,1740318632628,-500.0,0.00013698,2]
[354166387,1740318632638,-500.0,0.00013698,2]
[354166388,1740318632647,-603.15846838,0.00013698,2]
[354166391,1740318632657,-641.97937385,0.00013698,2]
[354166403,1740318632766,-217.78973982,0.00013698,2]
[354166405,1740318632777,-500.0,0.00013698,2]
[354166407,1740318632788,-500.0,0.00013698,2]
[354166409,1740318632798,-500.0,0.00013698,2]
[354166411,1740318632807,-510.90560016,0.00013698,2]
[354166413,1740318632817,-500.0,0.00013698,2]
[354166415,1740318632826,-502.60969088,0.00013698,2]
[354166417,1740318632836,-501.37013743,0.00013698,2]
[354166419,1740318632846,-500.0,0.00013698,2]
[354166421,1740318632855,-501.91527297,0.00013698,2]
[354166423,1740318632864,-500.0,0.00013698,2]
[354166425,1740318632874,-500.0,0.00013698,2]
[354166427,1740318632883,-500.0,0.00013698,2]
[354166429,1740318632892,-500.0,0.00013698,2]
[354166431,1740318632901,-501.34058671,0.00013698,2]
[354166433,1740318632910,-501.30725787,0.00013698,2]
[354166435,1740318632919,-500.0,0.00013698,2]
[354166437,1740318632928,-500.75945811,0.00013698,2]
[354166439,1740318632937,-566.53964761,0.00013698,2]
[354166441,1740318632946,-500.0,0.00013698,2]
[354166443,1740318632956,-500.0,0.00013698,2]
[354166445,1740318632965,-500.0,0.00013698,2]
[354166447,1740318632974,-500.0,0.00013698,2]
[354166449,1740318632983,-500.0,0.00013698,2]
[354166451,1740318632992,-500.0,0.00013698,2]
[354166453,1740318633001,-1000.0,0.00013698,2]
[354166455,1740318633010,-502.55415776,0.00013698,2]
[354166457,1740318633019,-500.0,0.00013698,2]
[354166459,1740318633029,-500.0,0.00013698,2]
[354166461,1740318633040,-502.39339429,0.00013698,2]
[354166463,1740318633049,-500.0,0.00013698,2]
[354166465,1740318633059,-500.0,0.00013698,2]
[354166468,1740318633069,-500.0,0.00013698,2]
[354166470,1740318633079,-500.0,0.00013698,2]
[354166471,1740318633089,-502.69712252,0.00013698,2]
[354166473,1740318633099,-502.73565694,0.00013698,2]
[354166475,1740318633109,-500.0,0.00013698,2]
[354166477,1740318633119,-501.04451241,0.00013698,2]
[354166479,1740318633129,-509.20076431,0.00013698,2]
[354166481,1740318633139,-500.71237548,0.00013698,2]
[354166484,1740318633149,-500.0,0.00013698,2]
[354166485,1740318633158,-502.46635805,0.00013698,2]
[354166487,1740318633168,-501.92077192,0.00013698,2]
[354166489,1740318633177,-500.0,0.00013698,2]
[354166492,1740318633186,-500.0,0.00013698,2]
[354166494,1740318633196,-501.39987005,0.00013698,2]
[354166496,1740318633205,-500.0,0.00013698,2]
[354166498,1740318633215,-500.0,0.00013698,2]
[354166500,1740318633224,-500.79065094,0.00013698,2]
[354166501,1740318633233,-500.0,0.00013698,2]
[354166503,1740318633243,-500.0,0.00013698,2]
[354166506,1740318633253,-501.98119818,0.00013698,2]
[354166507,1740318633262,-500.0,0.00013698,2]
[354166509,1740318633272,-500.0,0.00013698,2]
[354166511,1740318633282,-500.0,0.00013698,2]
[354166513,1740318633292,-500.0,0.00013698,2]
[354166515,1740318633302,-500.0,0.00013698,2]
[354166518,1740318633315,-500.0,0.00013698,2]
[354166520,1740318633325,-500.0,0.00013698,2]
[354166522,1740318633335,-503.75022547,0.00013698,2]
[354166524,1740318633345,-500.0,0.00013698,2]
[354166526,1740318633354,-500.0,0.00013698,2]
[354166527,1740318633364,-502.17883645,0.00013698,2]
[354166530,1740318633374,-501.44114927,0.00013698,2]
[354166532,1740318633383,-501.5017679,0.00013698,2]
[354166534,1740318633393,-490.32958949,0.00013698,2]
[354166536,1740318633402,-500.0,0.00013698,2]
[354166538,1740318633412,-406.46487777,0.00013698,2]
[354166540,1740318633422,-500.0,0.00013698,2]
[354166542,1740318633432,-405.47399323,0.00013698,2]
[354166544,1740318633441,-500.0,0.00013698,2]
[354166546,1740318633451,-500.0,0.00013698,2]
[354166547,1740318633460,-500.0,0.00013698,2]
[354166549,1740318633469,-500.0,0.00013698,2]
[354166551,1740318633480,-500.0,0.00013698,2]
[354166553,1740318633491,-500.0,0.00013698,2]
[354166556,1740318633501,-502.41666624,0.00013698,2]
[354166557,1740318633510,-501.46712333,0.00013698,2]
[354166560,1740318633522,-165.51770334,0.00013698,2]
[354166562,1740318633531,-508.02085293,0.00013698,2]
[354166564,1740318633540,-501.23448438,0.00013698,2]
[354166566,1740318633549,-500.0,0.00013698,2]
[354166568,1740318633559,-500.0,0.00013698,2]
[354166570,1740318633570,-500.0,0.00013698,2]
[354166571,1740318633580,-500.58774739,0.00013698,2]
[354166573,1740318633589,-520.31729532,0.00013698,2]
[354166576,1740318633599,-501.20030978,0.00013698,2]
[354166578,1740318633608,-500.0,0.00013698,2]
[354166579,1740318633618,-501.89166093,0.00013698,2]
[354166582,1740318633627,-500.0,0.00013698,2]
[354166583,1740318633636,-500.0,0.00013698,2]
[354166585,1740318633646,-500.0,0.00013698,2]
[354166587,1740318633656,-500.0,0.00013698,2]
[354166590,1740318633666,-500.0,0.00013698,2]
[354166592,1740318633675,-500.0,0.00013698,2]
[354166594,1740318633684,-165.0910574,0.00013698,2]
[354166595,1740318633694,-500.0,0.00013698,2]
[354166597,1740318633703,-500.0,0.00013698,2]
[354166599,1740318633712,-500.0,0.00013698,2]
[354166601,1740318633721,-500.0,0.00013698,2]
[354166604,1740318633731,-500.0,0.00013698,2]
[354166606,1740318633740,-299.46,0.00013698,2]
[354166608,1740318633750,-500.0,0.00013698,2]
[354166609,1740318633759,-504.44749838,0.00013698,2]
[354166612,1740318633769,-170.80519076,0.00013698,2]
[354166614,1740318633779,-501.98577372,0.00013698,2]
[354166616,1740318633788,-500.0,0.00013698,2]
[354166618,1740318633797,-500.0,0.00013698,2]
[354166619,1740318633806,-500.0,0.00013698,2]
[354166621,1740318633815,-261.4178488,0.00013698,2]
[354166623,1740318633825,-372.95272051,0.00013698,2]
[354166625,1740318633835,-500.0,0.00013698,2]
[354166628,1740318633845,-500.0,0.00013698,2]
[354166630,1740318633854,-505.96566095,0.00013698,2]
[354166632,1740318633864,-500.0,0.00013698,2]
[354166634,1740318633873,-500.0,0.00013698,2]
[354166636,1740318633882,-500.0,0.00013698,2]
[354166638,1740318633892,-500.0,0.00013698,2]
[354166640,1740318633902,-500.0,0.00013698,2]
[354166642,1740318633912,-500.0,0.00013698,2]
[354166644,1740318633922,-500.0,0.00013698,2]
[354166646,1740318633931,-500.0,0.00013698,2]
[354166648,1740318633940,-614.16,0.00013698,2]
[354166650,1740318633952,-503.64952296,0.00013698,2]
[354166652,1740318633961,-500.0,0.00013698,2]
[354166654,1740318633971,-500.0,0.00013698,2]
[354166656,1740318633980,-387.57734911,0.00013698,2]
[354166658,1740318633990,-500.0,0.00013698,2]
[354166660,1740318633999,-308.7275488,0.00013698,2]
[354166663,1740318634018,-191.2724512,0.00013698,2]
[354166665,1740318634027,-500.0,0.00013698,2]
[354166667,1740318634036,-501.17016285,0.00013698,2]
[354166669,1740318634045,-500.0,0.00013698,2]
[354166671,1740318634054,-500.0,0.00013698,2]
[354166673,1740318634064,-500.0,0.00013698,2]
[354166675,1740318634073,-500.0,0.00013698,2]
[354166677,1740318634082,-502.16157905,0.00013698,2]
[354166679,1740318634091,-547.43,0.00013698,2]
[354166681,1740318634100,-500.0,0.00013698,2]
[354166682,1740318634110,-500.0,0.00013698,2]
[354166684,1740318634119,-500.0,0.00013698,2]
[354166686,1740318634128,-500.0,0.00013698,2]
[354166688,1740318634137,-500.0,0.00013698,2]
[354166690,1740318634147,-500.0,0.00013698,2]
[354166692,1740318634156,-500.0,0.00013698,2]
[354166693,1740318634166,-504.43446659,0.00013698,2]
[354166695,1740318634175,-500.0,0.00013698,2]
[354166697,1740318634184,-388.64243232,0.00013698,2]
[354166699,1740318634194,-500.97538217,0.00013698,2]
[354166701,1740318634204,-500.0,0.00013698,2]
[354166703,1740318634213,-500.0,0.00013698,2]
[354166705,1740318634223,-560.39311869,0.00013698,2]
[354166707,1740318634232,-500.0,0.00013698,2]
[354166709,1740318634241,-500.0,0.00013698,2]
[354166711,1740318634250,-500.0,0.00013698,2]
[354166713,1740318634260,-502.33055974,0.00013698,2]
[354166715,1740318634269,-500.0,0.00013698,2]
[354166717,1740318634278,-500.0,0.00013698,2]
[354166719,1740318634287,-500.0,0.00013698,2]
[354166721,1740318634297,-500.0,0.00013698,2]
[354166723,1740318634306,-500.0,0.00013698,2]
[354166725,1740318634315,-503.12917221,0.00013698,2]
[354166727,1740318634325,-3132.76,0.00013698,2]
[354166729,1740318634335,-2016.89,0.00013698,2]
[354166731,1740318634344,-500.0,0.00013698,2]
[354166733,1740318634354,-106.63411191,0.00013698,2]
[354166735,1740318634366,-393.36588809,0.00013698,2]
[354166737,1740318634375,-500.0,0.00013698,2]
[354166739,1740318634384,-500.0,0.00013698,2]
[354166741,1740318634394,-500.0,0.00013698,2]
[354166743,1740318634403,-361.41884426,0.00013698,2]
[354166745,1740318634415,-138.58115574,0.00013698,2]
[354166747,1740318634423,-500.0,0.00013698,2]
[354166749,1740318634433,-500.0,0.00013698,2]
[354166751,1740318634442,-500.0,0.00013698,2]
[354166753,1740318634451,-500.0,0.00013698,2]
[354166755,1740318634461,-500.0,0.00013698,2]
[354166757,1740318634470,-500.0,0.00013698,2]
[354166759,1740318634483,-469.12315619,0.00013698,2]
[354166761,1740318634493,-500.0,0.00013698,2]
[354166763,1740318634502,-569.85793456,0.00013698,2]
[354166765,1740318634511,-121.51077561,0.00013698,2]
[354167069,1740318637829,-5000.0,0.0001074,2]
[354167070,1740318637839,-344.09583527,0.00013698,2]
[354167071,1740318637848,-500.0,0.00013698,2]
[354167072,1740318637858,-686.76,0.00013698,2]
[354167073,1740318637867,-365.94524741,0.00013698,2]
[354167074,1740318637876,-500.0,0.00013698,2]
[354167075,1740318637886,-163.6970146,0.00013698,2]
[354167076,1740318637898,-336.3029854,0.00013698,2]
[354167077,1740318637908,-835.87,0.00013698,2]
[354167078,1740318637918,-723.15,0.00013698,2]
[354167079,1740318637927,-500.0,0.00013698,2]
[354167080,1740318637937,-500.43564029,0.00013698,2]
[354167081,1740318637946,-334.07552992,0.00013698,2]
[354167082,1740318637955,-583.18,0.00013698,2]
[354167089,1740318638052,-500.0,0.00013698,2]
[354167091,1740318638061,-502.42176256,0.00013698,2]
[354167093,1740318638071,-500.0,0.00013698,2]
[354167095,1740318638081,-500.0,0.00013698,2]
[354167097,1740318638090,-500.0,0.00013698,2]
[354167099,1740318638099,-500.0,0.00013698,2]
[354167102,1740318638119,-500.0,0.00013698,2]
[354167105,1740318638130,-303.6563993,0.00013699,2]
[354167107,1740318638140,-375.416592,0.00013699,2]
[354167109,1740318638150,-500.0,0.000137,2]
[354167111,1740318638160,-500.0,0.0001378,2]
[354167113,1740318638170,-500.0,0.0001378,2]
[354167115,1740318638180,-500.0,0.0001378,2]
[354167117,1740318638191,-501.07615933,0.0001378,2]
[354167119,1740318638200,-500.0,0.0001378,2]
[354167121,1740318638211,-503.82736952,0.0001378,2]
[354167124,1740318638223,-502.67126233,0.0001378,2]
[354167126,1740318638233,-500.0,0.0001378,2]
[354167128,1740318638243,-498.08965936,0.0001378,2]
[354167130,1740318638253,-500.0,0.0001378,2]
[354167132,1740318638263,-502.46238684,0.0001378,2]
[354167134,1740318638272,-500.0,0.0001378,2]
[354167136,1740318638282,-500.0,0.0001378,2]
[354167138,1740318638292,-500.0,0.0001378,2]
[354167140,1740318638302,-500.0,0.0001378,2]
[354167142,1740318638311,-500.0,0.0001378,2]
[354167144,1740318638321,-500.0,0.0001378,2]
[354167146,1740318638331,-503.27838195,0.0001378,2]
[354167148,1740318638341,-500.0,0.0001378,2]
[354167150,1740318638351,-500.0,0.0001378,2]
[354167152,1740318638360,-500.0,0.0001378,2]
[354167153,1740318638370,-500.0,0.0001378,2]
[354167155,1740318638379,-500.0,0.0001378,2]
[354167157,1740318638389,-500.0,0.0001378,2]
[354167159,1740318638398,-500.0,0.0001378,2]
[354167160,1740318638408,-500.0,0.0001378,2]
[354167161,1740318638418,-500.0,0.0001378,2]
[354167162,1740318638427,-500.0,0.0001378,2]
[354167163,1740318638437,-500.0,0.0001378,2]
[354167164,1740318638446,-500.0,0.0001378,2]
[354167165,1740318638455,-500.0,0.0001378,2]
[354167166,1740318638465,-500.0,0.0001378,2]
[354167167,1740318638475,-500.0,0.0001378,2]
[354167168,1740318638488,-500.0,0.0001378,2]
[354167169,1740318638498,-504.77749621,0.0001378,2]
[354167170,1740318638507,-500.0,0.0001378,2]
[354167171,1740318638517,-500.0,0.0001378,2]
[354167172,1740318638527,-500.0,0.0001378,2]
[354167173,1740318638536,-500.0,0.0001378,2]
[354167174,1740318638546,-200.8950748,0.0001378,2]
[354167175,1740318638556,-479.09692937,0.0001378,2]
[354167176,1740318638566,-163.6389321,0.0001378,2]
[354167177,1740318638576,-500.0,0.0001378,2]
[354167178,1740318638585,-502.71667843,0.0001378,2]
[354167179,1740318638595,-500.0,0.0001378,2]
[354167180,1740318638605,-269.45077559,0.0001378,2]
[354167181,1740318638615,-500.0,0.0001378,2]
[354167182,1740318638624,-503.23432452,0.0001378,2]
[354167183,1740318638634,-500.0,0.0001378,2]
[354167184,1740318638644,-500.0,0.0001378,2]
[354167185,1740318638653,-500.0,0.0001378,2]
[354167186,1740318638662,-500.0,0.0001378,2]
[354167187,1740318638672,-614.16,0.0001378,2]
[354167188,1740318638682,-500.0,0.0001378,2]
[354167189,1740318638691,-500.0,0.0001378,2]
[354167190,1740318638700,-500.0,0.0001378,2]
[354167191,1740318638709,-500.0,0.0001378,2]
[354167192,1740318638719,-500.0,0.0001378,2]
[354167193,1740318638728,-500.0,0.0001378,2]
[354167194,1740318638738,-504.7266932,0.0001378,2]
[354167195,1740318638748,-500.0,0.0001378,2]
[354167196,1740318638758,-500.0,0.0001378,2]
[354167197,1740318638767,-500.0,0.0001378,2]
[354167198,1740318638777,-321.9026583,0.0001378,2]
[354167199,1740318638787,-500.0,0.0001378,2]
[354167200,1740318638796,-500.0,0.0001378,2]
[354167201,1740318638806,-500.0,0.0001378,2]
[354167202,1740318638816,-500.0,0.0001378,2]
[354167203,1740318638825,-500.0,0.0001378,2]
[354167204,1740318638835,-500.0,0.0001378,2]
[354167205,1740318638845,-3132.76,0.0001378,2]
[354167206,1740318638854,-2016.89,0.0001378,2]
[354167207,1740318638863,-296.34,0.0001378,2]
[354167208,1740318638873,-500.0,0.0001378,2]
[354167209,1740318638882,-500.0,0.0001378,2]
[354167210,1740318638892,-500.0,0.0001378,2]
[354167211,1740318638902,-500.0,0.0001378,2]
[354167212,1740318638912,-500.0,0.0001378,2]
[354167213,1740318638921,-500.0,0.0001378,2]
[354167214,1740318638930,-261.77239442,0.0001378,2]
[354167215,1740318638943,-686.76,0.0001378,2]
[354167216,1740318638953,-500.0,0.0001378,2]
[354167217,1740318638963,-500.0,0.0001378,2]
[354167218,1740318638973,-835.87,0.0001378,2]
[354167219,1740318638982,-723.15,0.0001378,2]
[354167220,1740318638992,-583.18,0.0001378,2]
[354167221,1740318639002,-500.0,0.0001378,2]
[354167222,1740318639012,-500.0,0.0001378,2]
[354167223,1740318639021,-500.0,0.0001378,2]
[354167224,1740318639031,-500.0,0.00013863,2]
[354167225,1740318639040,-500.0,0.00013863,2]
[354167226,1740318639050,-614.16,0.00013863,2]
[354167227,1740318639059,-500.0,0.00013863,2]
[354167228,1740318639069,-500.0,0.00013863,2]
[354167229,1740318639079,-500.0,0.00013863,2]
[354167230,1740318639089,-500.0,0.00013863,2]
[354167231,1740318639099,-3132.76,0.00013863,2]
[354167232,1740318639109,-2016.89,0.00013863,2]
[354167233,1740318639118,-686.76,0.00013863,2]
[354167234,1740318639128,-835.87,0.00013863,2]
[354167235,1740318639138,-723.15,0.00013863,2]
[354167236,1740318639148,-583.18,0.00013863,2]
[354167237,1740318639157,-500.0,0.00013863,2]
[354167238,1740318639167,-500.0,0.00013945,2]
[354167239,1740318639178,-500.0,0.00013945,2]
[354167240,1740318639188,-614.16,0.00013945,2]
[354167241,1740318639197,-500.0,0.00013945,2]
[354167242,1740318639207,-500.0,0.00013945,2]
[354167243,1740318639216,-204.12,0.00013945,2]
[354167244,1740318639227,-500.0,0.00013945,2]
[354167245,1740318639238,-3132.76,0.00013945,2]
[354167246,1740318639247,-1477.78667022,0.00013945,2]
[354167247,1740318639263,-539.10332978,0.00013945,2]
[354167248,1740318639273,-72.45267022,0.00013945,2]
[354167281,1740318640268,-614.30732978,0.00013945,2]
[354167283,1740318640278,-835.87,0.00013945,2]
[354167285,1740318640288,-723.15,0.00013945,2]
[354167287,1740318640298,-583.18,0.00013945,2]
[354167289,1740318640307,-500.0,0.00013945,2]
[354167291,1740318640317,-1000.0,0.00014,14]
[354167293,1740318640327,-200.0,0.00014,10]
[354167296,1740318640336,-500.0,0.00014027,2]
[354167298,1740318640345,-352.03824521,0.00014027,2]
[354167300,1740318640355,-614.16,0.00014027,2]
[354167302,1740318640364,-500.0,0.00014027,2]
[354167304,1740318640373,-500.0,0.00014027,2]
[354167306,1740318640383,-500.0,0.00014027,2]
[354167308,1740318640392,-3132.76,0.00014027,2]
[354167310,1740318640401,-2016.89,0.00014027,2]
[354167312,1740318640411,-686.76,0.00014027,2]
[354167314,1740318640420,-835.87,0.00014027,2]
[354167316,1740318640429,-723.15,0.00014027,2]
[354167318,1740318640439,-583.18,0.00014027,2]
[354167320,1740318640448,-500.0,0.00014027,2]
[354167322,1740318640458,-2577.906065,0.00014056,2]
[354167324,1740318640467,-2577.906065,0.00014056,2]
[354167326,1740318640480,-151.0,0.00014056,2]
[354167328,1740318640490,-151.0,0.00014056,2]
[354167330,1740318640499,-13279.54588923,0.00014102,2]
[354167332,1740318640509,-151.0,0.00014109,2]